[Event "European Online Club-ch-D 2021"]
[Site "Online"]
[Date "2021.03.27"]
[Round "7.17"]
[White "Reimanis, Ritvars"]
[Black "Lopez Del Alamo, Antonio"]
[Result "1/2-1/2"]
[ECO "E99"]
[WhiteElo "2412"]
[BlackElo "2295"]
[Annotator "NA"]
[PlyCount "210"]
[EventDate "2021.03.27"]
[EventType "team-tourn"]
[EventCountry "NET"]
[SourceTitle "playchess.com"]
[Source "ChessBase"]
[SourceQuality "1"]
[TimeControl "900+5"]

1. d4 {[%emt 0:00:00]} Nf6 {[%emt 0:00:04]} 2. c4 {[%emt 0:00:02]} g6 {[%emt 0:00:01]} 3. Nc3 {[%emt 0:00:02]} Bg7 {[%emt 0:00:02]} 4. e4 {[%emt 0:00:01]} d6 {[%emt 0:00:01]} 5. Be2 {[%emt 0:00:02]} O-O {[%emt 0:00:02]} 6. Nf3 {[%emt 0:00:02]} e5 {[%emt 0:00:02]} 7. O-O {[%emt 0:00:01]} Nc6 {[%emt 0:00:01]} 8. d5 {[%emt 0:00:02]} Ne7 {[%emt 0:00:02]} 9. Ne1 {[%emt 0:00:01]} Nd7 {[%emt 0:00:03]} 10. f3 {[%emt 0:00:02]} f5 {[%emt 0:00:01]} 11. g4 {[%emt 0:00:01]} fxg4 {[%emt 0:02:20]} 12. fxg4 {[%emt 0:00:03]} Rxf1+ {[%emt 0:00:05]} 13. Kxf1 {[%emt 0:00:19]} Nf6 {[%emt 0:00:13]} 14. g5 {[%emt 0:00:10]} Nh5 {[%emt 0:00:05]} 15. Bxh5 {[%emt 0:00:51]} gxh5 {[%emt 0:00:03]} 16. Qxh5 {[%emt 0:00:02]} Ng6 {[%emt 0:00:10]} 17. Ng2 {[%emt 0:00:04]} Bd7 {[%emt 0:00:47]} 18. Kg1 {[%emt 0:00:04]} Qe7 {[%emt 0:00:57]} 19. Be3 {[%emt 0:00:16]} Rf8 {[%emt 0:00:24]} 20. Rf1 {[%emt 0:00:48]} Rxf1+ {[%emt 0:01:33]} 21. Kxf1 {[%emt 0:00:03]} Qf8+ {[%emt 0:00:53]} 22. Ke1 {[%emt 0:00:52]} Qc8 {[%emt 0:00:37]} 23. Qf3 {[%emt 0:00:21]} a6 {[%emt 0:00:29]} 24. c5 {[%emt 0:00:21]} dxc5 {[%emt 0:00:21]} 25. Bxc5 {[%emt 0:00:04]} b5 {[%emt 0:00:10]} 26. h4 {[%emt 0:00:53]} Bh3 {[%emt 0:00:13]} 27. Bf2 {[%emt 0:00:20]} b4 {[%emt 0:00:40]} 28. Ne2 {[%emt 0:00:12]} a5 {[%emt 0:00:28]} 29. Ne3 {[%emt 0:00:09]} Nf4 {[%emt 0:00:47]} 30. Nxf4 {[%emt 0:00:07]} exf4 {[%emt 0:00:02]} 31. Nc4 {[%emt 0:00:06]} Bd7 {[%emt 0:01:21]} 32. Qxf4 {[%emt 0:04:33]} Bb5 {[%emt 0:00:05]} 33. Ne5 {[%emt 0:00:06]} Bxe5 {[%emt 0:01:35]} 34. Qxe5 {[%emt 0:00:03]} Qg4 {[%emt 0:00:02]} 35. Qe6+ {[%emt 0:00:16]} Qxe6 {[%emt 0:00:04]} 36. dxe6 {[%emt 0:00:01]} Bc4 {[%emt 0:00:28]} 37. e7 {[%emt 0:00:38]} Kf7 {[%emt 0:00:03]} 38. Bc5 {[%emt 0:00:03]} Bxa2 {[%emt 0:00:11]} 39. h5 {[%emt 0:00:45]} Ke8 {[%emt 0:00:55]} 40. g6 {[%emt 0:00:21]} hxg6 {[%emt 0:00:36]} 41. hxg6 {[%emt 0:00:10]} Bb1 {[%emt 0:00:25]} 42. g7 {[%emt 0:00:03]} Ba2 {[%emt 0:00:01]} 43. Kd2 {[%emt 0:00:09]} Bg8 {[%emt 0:00:15]} 44. Ke3 {[%emt 0:00:06]} Bf7 {[%emt 0:00:08]} 45. Kf4 {[%emt 0:00:08]} Bg8 {[%emt 0:00:04]} 46. Kf5 {[%emt 0:00:09]} Kd7 {[%emt 0:00:21]} 47. Kf6 {[%emt 0:00:07]} Ke8 {[%emt 0:00:04]} 48. Kg6 {[%emt 0:00:55]} Kd7 {[%emt 0:00:06]} 49. e5 {[%emt 0:00:09]} Ke8 {[%emt 0:00:09]} 50. e6 {[%emt 0:00:26]} c6 {[%emt 0:00:23]} 51. Kf6 {[%emt 0:00:48]} b3 {[%emt 0:00:10]} 52. Ke5 {[%emt 0:00:09]} a4 {[%emt 0:00:02]} 53. Kd6 {[%emt 0:00:04]} a3 {[%emt 0:00:08]} 54. Bxa3 {[%emt 0:00:05]} c5 {[%emt 0:00:03]} 55. Bxc5 {[%emt 0:01:28]} Bxe6 {[%emt 0:00:04]} 56. Ke5 {[%emt 0:00:02]} Bg8 {[%emt 0:00:03]} 57. Kf6 {[%emt 0:00:01]} Kd7 {[%emt 0:00:03]} 58. Kg6 {[%emt 0:00:22]} Ke8 {[%emt 0:00:03]} 59. Bb4 {[%emt 0:00:02]} Kd7 {[%emt 0:00:01]} 60. Kh6 {[%emt 0:00:02]} Ke8 {[%emt 0:00:02]} 61. Ba3 {[%emt 0:00:00]} Kd7 {[%emt 0:00:02]} 62. Kg6 {[%emt 0:00:01]} Ke8 {[%emt 0:00:01]} 63. Kf6 {[%emt 0:00:03]} Kd7 {[%emt 0:00:02]} 64. Bb4 {[%emt 0:00:01]} Ke8 {[%emt 0:00:02]} 65. Be1 {[%emt 0:00:01]} Kd7 {[%emt 0:00:01]} 66. Bh4 {[%emt 0:00:01]} Ke8 {[%emt 0:00:02]} 67. Ke5 {[%emt 0:00:21]} Kd7 {[%emt 0:00:04]} 68. Bg5 {[%emt 0:00:02]} Bf7 {[%emt 0:00:04]} 69. Kf5 {[%emt 0:00:06]} Bg8 {[%emt 0:00:03]} 70. Kg4 {[%emt 0:00:01]} Ke8 {[%emt 0:00:02]} 71. Kf4 {[%emt 0:00:01]} Kd7 {[%emt 0:00:02]} 72. Ke5 {[%emt 0:00:01]} Bf7 {[%emt 0:00:01]} 73. Kf6 {[%emt 0:00:01]} Bg8 {[%emt 0:00:02]} 74. Bh4 {[%emt 0:00:03]} Ke8 {[%emt 0:00:02]} 75. Ke5 {[%emt 0:00:01]} Kd7 {[%emt 0:00:02]} 76. Kd4 {[%emt 0:00:01]} Bf7 {[%emt 0:00:02]} 77. Ke4 {[%emt 0:00:01]} Bg8 {[%emt 0:00:02]} 78. Kf4 {[%emt 0:00:01]} Bf7 {[%emt 0:00:01]} 79. Kf5 {[%emt 0:00:02]} Bg8 {[%emt 0:00:02]} 80. Ke5 {[%emt 0:00:02]} Bf7 {[%emt 0:00:02]} 81. Bg5 {[%emt 0:00:11]} Bg8 {[%emt 0:00:04]} 82. Ke4 {[%emt 0:00:00]} Bf7 {[%emt 0:00:10]} 83. Bh4 {[%emt 0:00:02]} Bg8 {[%emt 0:00:02]} 84. Kf4 {[%emt 0:00:01]} Bf7 {[%emt 0:00:01]} 85. Bf6 {[%emt 0:00:01]} Bg8 {[%emt 0:00:02]} 86. Ke5 {[%emt 0:00:01]} Bf7 {[%emt 0:00:02]} 87. Kf5 {[%emt 0:00:00]} Bg8 {[%emt 0:00:02]} 88. Kg5 {[%emt 0:00:01]} Ke8 {[%emt 0:00:03]} 89. Kh6 {[%emt 0:00:02]} Kd7 {[%emt 0:00:01]} 90. Bh4 {[%emt 0:00:01]} Ke8 {[%emt 0:00:02]} 91. Kg6 {[%emt 0:00:01]} Kd7 {[%emt 0:00:02]} 92. Bg5 {[%emt 0:00:01]} Ke8 {[%emt 0:00:01]} 93. Kf6 {[%emt 0:00:39]} Kd7 {[%emt 0:00:04]} 94. Kf5 {[%emt 0:00:01]} Bf7 {[%emt 0:00:03]} 95. Ke5 {[%emt 0:00:02]} Bg8 {[%emt 0:00:03]} 96. Bh4 {[%emt 0:00:02]} Bf7 {[%emt 0:00:01]} 97. Kf5 {[%emt 0:00:02]} Bg8 {[%emt 0:00:02]} 98. Kg4 {[%emt 0:00:01]} Ke8 {[%emt 0:00:02]} 99. Kh5 {[%emt 0:00:02]} Kd7 {[%emt 0:00:02]} 100. Kg6 {[%emt 0:00:01]} Ke8 {[%emt 0:00:01]} 101. Kf6 {[%emt 0:00:01]} Kd7 {[%emt 0:00:02]} 102. Bf2 {[%emt 0:00:02]} Ke8 {[%emt 0:00:02]} 103. Bc5 {[%emt 0:00:02]} Kd7 {[%emt 0:00:02]} 104. Ba3 {[%emt 0:00:02]} Ke8 {[%emt 0:00:02]} 105. Ke5 {[%emt 0:00:01]} Kd7 {[%emt 0:00:02]} 1/2-1/2

[Event "European Online Club-ch-D 2021"]
[Site "Online"]
[Date "2021.03.27"]
[Round "7.18"]
[White "Sanchez Gonzalez, Sergio"]
[Black "Kvetny, Mark"]
[Result "0-1"]
[ECO "A40"]
[WhiteElo "2281"]
[BlackElo "2416"]
[Annotator "NA"]
[PlyCount "84"]
[EventDate "2021.03.27"]
[EventType "team-tourn"]
[EventCountry "NET"]
[SourceTitle "playchess.com"]
[Source "ChessBase"]
[SourceQuality "1"]
[TimeControl "900+5"]

1. c4 {[%emt 0:00:00]} b6 {[%emt 0:00:15]} 2. Nc3 {[%emt 0:00:06]} Bb7 {[%emt 0:00:02]} 3. d4 {[%emt 0:00:02]} e6 {[%emt 0:00:01]} 4. Nf3 {[%emt 0:00:29]} Bb4 {[%emt 0:00:04]} 5. Qb3 {[%emt 0:00:09]} a5 {[%emt 0:00:11]} 6. a3 {[%emt 0:00:03]} a4 {[%emt 0:00:13]} 7. Qc2 {[%emt 0:00:11]} Bxc3+ {[%emt 0:00:10]} 8. Qxc3 {[%emt 0:00:02]} Nf6 {[%emt 0:00:02]} 9. e3 {[%emt 0:00:17]} d6 {[%emt 0:01:00]} 10. Bd3 {[%emt 0:00:04]} Nbd7 {[%emt 0:00:22]} 11. b4 {[%emt 0:00:38]} axb3 {[%emt 0:00:03]} 12. Bb2 {[%emt 0:00:04]} Ne4 {[%emt 0:00:54]} 13. Qxb3 {[%emt 0:00:09]} Ng5 {[%emt 0:00:38]} 14. Be2 {[%emt 0:00:39]} Nxf3+ {[%emt 0:01:00]} 15. gxf3 {[%emt 0:00:07]} Qh4 {[%emt 0:02:03]} 16. e4 {[%emt 0:00:44]} O-O {[%emt 0:00:11]} 17. Rc1 {[%emt 0:01:14]} Ra5 {[%emt 0:01:04]} 18. c5 {[%emt 0:02:22]} dxc5 {[%emt 0:00:21]} 19. Bc3 {[%emt 0:00:02]} Raa8 {[%emt 0:00:56]} 20. Qb2 {[%emt 0:00:02]} f6 {[%emt 0:01:23]} 21. dxc5 {[%emt 0:00:04]} Nxc5 {[%emt 0:00:17]} 22. Bb4 {[%emt 0:00:02]} Na4 {[%emt 0:01:07]} 23. Qb3 {[%emt 0:00:18]} c5 {[%emt 0:00:01]} 24. Qxe6+ {[%emt 0:00:05]} Kh8 {[%emt 0:00:02]} 25. Bd2 {[%emt 0:00:05]} Rfe8 {[%emt 0:00:53]} 26. Qf5 {[%emt 0:02:24]} Rad8 {[%emt 0:01:15]} 27. Qf4 {[%emt 0:00:13]} Qxf4 {[%emt 0:00:29]} 28. Bxf4 {[%emt 0:00:04]} Bc6 {[%emt 0:00:01]} 29. O-O {[%emt 0:00:01]} f5 {[%emt 0:00:12]} 30. e5 {[%emt 0:00:05]} g5 {[%emt 0:00:08]} 31. Bxg5 {[%emt 0:01:40]} Rg8 {[%emt 0:00:03]} 32. h4 {[%emt 0:00:01]} h6 {[%emt 0:00:01]} 33. f4 {[%emt 0:00:01]} Rd4 {[%emt 0:01:02]} 34. Rc4 {[%emt 0:00:32]} hxg5 {[%emt 0:00:04]} 35. fxg5 {[%emt 0:00:07]} Rgd8 {[%emt 0:00:02]} 36. h5 {[%emt 0:00:22]} Rxc4 {[%emt 0:00:14]} 37. Bxc4 {[%emt 0:00:02]} Rd4 {[%emt 0:00:01]} 38. Bf7 {[%emt 0:00:06]} Rg4+ {[%emt 0:00:27]} 39. Kh2 {[%emt 0:00:03]} Rg2+ {[%emt 0:00:18]} 40. Kh3 {[%emt 0:00:02]} Rxg5 {[%emt 0:00:02]} 41. e6 {[%emt 0:00:02]} Bg2+ {[%emt 0:00:07]} 42. Kh4 {[%emt 0:00:01]} Rg4# {[%emt 0:00:02]} 0-1

[Event "European Online Club-ch-D 2021"]
[Site "Online"]
[Date "2021.03.27"]
[Round "7.19"]
[White "Hoffmann, Hendrik"]
[Black "Gongora Montes, Benjamin"]
[Result "1-0"]
[ECO "C47"]
[WhiteElo "2242"]
[BlackElo "2198"]
[Annotator "NA"]
[PlyCount "91"]
[EventDate "2021.03.27"]
[EventType "team-tourn"]
[EventCountry "NET"]
[SourceTitle "playchess.com"]
[Source "ChessBase"]
[SourceQuality "1"]
[TimeControl "900+5"]

1. e4 {[%emt 0:00:00]} e5 {[%emt 0:00:06]} 2. Nf3 {[%emt 0:00:04]} Nc6 {[%emt 0:00:04]} 3. Nc3 {[%emt 0:00:04]} Nf6 {[%emt 0:00:04]} 4. d4 {[%emt 0:00:03]} exd4 {[%emt 0:00:04]} 5. Nxd4 {[%emt 0:00:02]} Bb4 {[%emt 0:00:04]} 6. Nxc6 {[%emt 0:00:03]} bxc6 {[%emt 0:00:04]} 7. Bd3 {[%emt 0:00:02]} d5 {[%emt 0:00:04]} 8. exd5 {[%emt 0:00:03]} Qe7+ {[%emt 0:00:04]} 9. Qe2 {[%emt 0:00:43]} Qxe2+ {[%emt 0:00:05]} 10. Bxe2 {[%emt 0:00:15]} cxd5 {[%emt 0:00:37]} 11. O-O {[%emt 0:00:10]} O-O {[%emt 0:01:31]} 12. Bf4 {[%emt 0:00:39]} c6 {[%emt 0:00:04]} 13. a3 {[%emt 0:00:11]} Bxc3 {[%emt 0:01:03]} 14. bxc3 {[%emt 0:00:00]} Ne4 {[%emt 0:00:06]} 15. Be5 {[%emt 0:02:04]} Re8 {[%emt 0:00:11]} 16. Bd4 {[%emt 0:00:34]} c5 {[%emt 0:00:49]} 17. Bb5 {[%emt 0:00:05]} Re6 {[%emt 0:00:04]} 18. f3 {[%emt 0:00:19]} cxd4 {[%emt 0:04:12]} 19. fxe4 {[%emt 0:00:06]} Rxe4 {[%emt 0:00:02]} 20. Bc6 {[%emt 0:00:11]} Rb8 {[%emt 0:00:10]} 21. Bxd5 {[%emt 0:00:02]} Re7 {[%emt 0:00:46]} 22. cxd4 {[%emt 0:00:22]} Ba6 {[%emt 0:00:03]} 23. c4 {[%emt 0:01:50]} h5 {[%emt 0:01:38]} 24. Rf5 {[%emt 0:00:35]} Rb2 {[%emt 0:00:31]} 25. Raf1 {[%emt 0:00:17]} Bb7 {[%emt 0:01:40]} 26. Rxf7 {[%emt 0:02:04]} Bxd5 {[%emt 0:00:47]} 27. Rf8+ {[%emt 0:00:05]} Kh7 {[%emt 0:00:04]} 28. cxd5 {[%emt 0:00:02]} Rd2 {[%emt 0:00:33]} 29. R8f5 {[%emt 0:00:43]} Kg6 {[%emt 0:00:28]} 30. h4 {[%emt 0:01:51]} Rxd4 {[%emt 0:00:08]} 31. Rg5+ {[%emt 0:00:08]} Kh6 {[%emt 0:00:04]} 32. g3 {[%emt 0:00:22]} Rd3 {[%emt 0:00:58]} 33. a4 {[%emt 0:00:58]} Ree3 {[%emt 0:00:09]} 34. Kg2 {[%emt 0:00:05]} Rd2+ {[%emt 0:00:21]} 35. Rf2 {[%emt 0:00:02]} Red3 {[%emt 0:00:02]} 36. Rxd2 {[%emt 0:00:12]} Rxd2+ {[%emt 0:00:02]} 37. Kf3 {[%emt 0:00:02]} Ra2 {[%emt 0:00:04]} 38. a5 {[%emt 0:00:40]} Rxa5 {[%emt 0:00:02]} 39. d6 {[%emt 0:00:03]} Ra3+ {[%emt 0:00:06]} 40. Ke4 {[%emt 0:00:03]} Ra4+ {[%emt 0:00:18]} 41. Kd5 {[%emt 0:00:29]} Ra1 {[%emt 0:00:03]} 42. Kc6 {[%emt 0:00:02]} Rc1+ {[%emt 0:00:10]} 43. Rc5 {[%emt 0:00:05]} Rd1 {[%emt 0:00:04]} 44. Rd5 {[%emt 0:00:01]} Rc1+ {[%emt 0:00:06]} 45. Kb7 {[%emt 0:00:08]} a5 {[%emt 0:00:04]} 46. d7 {[%emt 0:00:03]} 1-0

[Event "European Online Club-ch-D 2021"]
[Site "Online"]
[Date "2021.03.27"]
[Round "7.20"]
[White "Estevez Sacristan, Deva"]
[Black "Kelmendi, Bajrush"]
[Result "0-1"]
[ECO "B06"]
[WhiteElo "1932"]
[BlackElo "1951"]
[Annotator "NA"]
[PlyCount "108"]
[EventDate "2021.03.27"]
[EventType "team-tourn"]
[EventCountry "NET"]
[SourceTitle "playchess.com"]
[Source "ChessBase"]
[SourceQuality "1"]
[TimeControl "900+5"]

1. e4 {[%emt 0:00:00]} g6 {[%emt 0:00:12]} 2. d4 {[%emt 0:00:12]} Bg7 {[%emt 0:00:05]} 3. Nc3 {[%emt 0:00:15]} b6 {[%emt 0:00:04]} 4. Be3 {[%emt 0:00:18]} Bb7 {[%emt 0:00:04]} 5. Nf3 {[%emt 0:00:25]} e6 {[%emt 0:00:04]} 6. Bd3 {[%emt 0:00:24]} d6 {[%emt 0:00:04]} 7. Qd2 {[%emt 0:00:19]} h6 {[%emt 0:00:04]} 8. O-O {[%emt 0:00:12]} Ne7 {[%emt 0:00:05]} 9. Rad1 {[%emt 0:00:07]} Nd7 {[%emt 0:00:04]} 10. b4 {[%emt 0:00:26]} a6 {[%emt 0:00:11]} 11. a4 {[%emt 0:00:06]} d5 {[%emt 0:00:05]} 12. Qe2 {[%emt 0:00:29]} O-O {[%emt 0:01:30]} 13. Nd2 {[%emt 0:00:20]} dxe4 {[%emt 0:00:07]} 14. Ndxe4 {[%emt 0:02:25]} Nf5 {[%emt 0:00:37]} 15. Bc4 {[%emt 0:00:18]} Qe7 {[%emt 0:00:14]} 16. b5 {[%emt 0:00:13]} axb5 {[%emt 0:00:31]} 17. axb5 {[%emt 0:00:08]} Nxe3 {[%emt 0:00:19]} 18. fxe3 {[%emt 0:00:07]} Ra3 {[%emt 0:00:23]} 19. Ra1 {[%emt 0:00:15]} Rfa8 {[%emt 0:00:04]} 20. Rxa3 {[%emt 0:00:11]} Rxa3 {[%emt 0:00:06]} 21. Bb3 {[%emt 0:00:40]} Kh7 {[%emt 0:00:40]} 22. Qf3 {[%emt 0:00:15]} Bxe4 {[%emt 0:00:40]} 23. Nxe4 {[%emt 0:00:15]} f5 {[%emt 0:00:25]} 24. Nd2 {[%emt 0:00:05]} Ra7 {[%emt 0:00:29]} 25. Qc6 {[%emt 0:00:40]} e5 {[%emt 0:00:08]} 26. dxe5 {[%emt 0:00:23]} Nxe5 {[%emt 0:00:05]} 27. Qd5 {[%emt 0:00:07]} h5 {[%emt 0:00:08]} 28. e4 {[%emt 0:00:23]} Ng4 {[%emt 0:01:02]} 29. Re1 {[%emt 0:01:38]} Qc5+ {[%emt 0:00:47]} 30. Qxc5 {[%emt 0:00:10]} bxc5 {[%emt 0:00:03]} 31. Nf3 {[%emt 0:00:57]} fxe4 {[%emt 0:00:05]} 32. Ng5+ {[%emt 0:00:04]} Kh6 {[%emt 0:00:02]} 33. Nf7+ {[%emt 0:00:09]} Kh7 {[%emt 0:00:07]} 34. Ng5+ {[%emt 0:00:02]} Kh8 {[%emt 0:00:02]} 35. h3 {[%emt 0:01:02]} Bd4+ {[%emt 0:00:12]} 36. Kf1 {[%emt 0:00:08]} Ne3+ {[%emt 0:00:05]} 37. Ke2 {[%emt 0:00:12]} Nxg2 {[%emt 0:00:05]} 38. Rf1 {[%emt 0:00:08]} Kg7 {[%emt 0:00:39]} 39. Ne6+ {[%emt 0:00:38]} Kh6 {[%emt 0:00:07]} 40. Rf7 {[%emt 0:00:36]} Rb7 {[%emt 0:00:11]} 41. Bc4 {[%emt 0:00:12]} Ne3 {[%emt 0:00:05]} 42. Bb3 {[%emt 0:00:23]} Rxb5 {[%emt 0:00:20]} 43. h4 {[%emt 0:00:23]} Nf5 {[%emt 0:00:10]} 44. Bd5 {[%emt 0:00:31]} e3 {[%emt 0:00:33]} 45. Nf8 {[%emt 0:00:11]} Nxh4 {[%emt 0:00:08]} 46. Be4 {[%emt 0:00:20]} Rb6 {[%emt 0:00:12]} 47. Rf4 {[%emt 0:00:23]} Kg5 {[%emt 0:00:33]} 48. Rf1 {[%emt 0:00:17]} Nf5 {[%emt 0:00:24]} 49. Rg1+ {[%emt 0:00:05]} Kh6 {[%emt 0:00:05]} 50. Kd3 {[%emt 0:00:37]} Rf6 {[%emt 0:00:13]} 51. Nd7 {[%emt 0:00:03]} Rd6 {[%emt 0:00:07]} 52. Bxf5 {[%emt 0:00:04]} gxf5 {[%emt 0:00:04]} 53. Nf8 {[%emt 0:00:01]} Bg7+ {[%emt 0:00:04]} 54. Kxe3 {[%emt 0:00:06]} Bd4+ {[%emt 0:00:04]} 0-1

[Event "European Online Club-ch-D 2021"]
[Site "Online"]
[Date "2021.03.27"]
[Round "8.1"]
[White "Eren, Ataberk"]
[Black "Sanchez Gonzalez, Sergio"]
[Result "1-0"]
[ECO "D02"]
[WhiteElo "2306"]
[BlackElo "2281"]
[Annotator "NA"]
[PlyCount "61"]
[EventDate "2021.03.27"]
[EventType "team-tourn"]
[EventCountry "NET"]
[SourceTitle "playchess.com"]
[Source "ChessBase"]
[SourceQuality "1"]
[TimeControl "900+5"]

1. d4 {[%emt 0:00:00]} Nf6 {[%emt 0:00:09]} 2. Nf3 {[%emt 0:00:04]} e6 {[%emt 0:00:03]} 3. Bf4 {[%emt 0:00:02]} c5 {[%emt 0:00:04]} 4. e3 {[%emt 0:00:04]} d5 {[%emt 0:00:03]} 5. Nbd2 {[%emt 0:00:08]} Nc6 {[%emt 0:00:07]} 6. c3 {[%emt 0:00:05]} Bd6 {[%emt 0:00:07]} 7. Bg3 {[%emt 0:00:03]} Qc7 {[%emt 0:00:08]} 8. dxc5 {[%emt 0:00:04]} Bxg3 {[%emt 0:00:03]} 9. hxg3 {[%emt 0:00:01]} a5 {[%emt 0:00:07]} 10. a4 {[%emt 0:00:51]} Bd7 {[%emt 0:00:05]} 11. Nb3 {[%emt 0:00:10]} e5 {[%emt 0:00:14]} 12. Bb5 {[%emt 0:00:06]} e4 {[%emt 0:00:10]} 13. Nfd4 {[%emt 0:00:08]} Ne5 {[%emt 0:00:06]} 14. O-O {[%emt 0:00:15]} O-O {[%emt 0:00:15]} 15. Be2 {[%emt 0:02:11]} Rfd8 {[%emt 0:00:12]} 16. Nb5 {[%emt 0:00:38]} Bxb5 {[%emt 0:00:10]} 17. axb5 {[%emt 0:00:27]} Nc4 {[%emt 0:00:22]} 18. Qd4 {[%emt 0:01:39]} a4 {[%emt 0:00:42]} 19. Nc1 {[%emt 0:00:13]} Nxb2 {[%emt 0:00:07]} 20. Qb4 {[%emt 0:00:23]} Nc4 {[%emt 0:00:22]} 21. Bxc4 {[%emt 0:00:14]} dxc4 {[%emt 0:00:01]} 22. Qxc4 {[%emt 0:00:08]} a3 {[%emt 0:00:08]} 23. Nb3 {[%emt 0:00:09]} Qe5 {[%emt 0:00:08]} 24. c6 {[%emt 0:03:23]} bxc6 {[%emt 0:00:05]} 25. bxc6 {[%emt 0:00:07]} Ng4 {[%emt 0:00:07]} 26. Rfd1 {[%emt 0:00:38]} Qf5 {[%emt 0:00:04]} 27. Rxd8+ {[%emt 0:01:22]} Rxd8 {[%emt 0:00:04]} 28. c7 {[%emt 0:00:01]} Qxf2+ {[%emt 0:00:55]} 29. Kh1 {[%emt 0:00:02]} Rc8 {[%emt 0:00:01]} 30. Rd1 {[%emt 0:00:22]} Qf6 {[%emt 0:00:22]} 31. Qa6 {[%emt 0:00:52]} 1-0

[Event "European Online Club-ch-D 2021"]
[Site "Online"]
[Date "2021.03.27"]
[Round "8.2"]
[White "Gongora Montes, Benjamin"]
[Black "Ozkan, Ervin"]
[Result "0-1"]
[ECO "D03"]
[WhiteElo "2198"]
[BlackElo "2147"]
[Annotator "NA"]
[PlyCount "64"]
[EventDate "2021.03.27"]
[EventType "team-tourn"]
[EventCountry "NET"]
[SourceTitle "playchess.com"]
[Source "ChessBase"]
[SourceQuality "1"]
[TimeControl "900+5"]

1. d4 {[%emt 0:00:00]} d5 {[%emt 0:00:02]} 2. Nf3 {[%emt 0:00:04]} Nf6 {[%emt 0:00:02]} 3. Bg5 {[%emt 0:00:05]} e6 {[%emt 0:00:05]} 4. Nbd2 {[%emt 0:00:04]} Be7 {[%emt 0:00:02]} 5. e3 {[%emt 0:00:02]} h6 {[%emt 0:00:02]} 6. Bh4 {[%emt 0:00:04]} Nbd7 {[%emt 0:01:06]} 7. Bd3 {[%emt 0:00:06]} b6 {[%emt 0:00:08]} 8. Ne5 {[%emt 0:00:25]} Nxe5 {[%emt 0:00:20]} 9. dxe5 {[%emt 0:00:03]} Nd7 {[%emt 0:00:01]} 10. Bg3 {[%emt 0:00:03]} Bb7 {[%emt 0:00:16]} 11. Qe2 {[%emt 0:00:14]} Nc5 {[%emt 0:00:22]} 12. O-O-O {[%emt 0:01:04]} Qd7 {[%emt 0:00:47]} 13. Qg4 {[%emt 0:00:25]} Nxd3+ {[%emt 0:00:12]} 14. cxd3 {[%emt 0:00:03]} O-O-O {[%emt 0:01:54]} 15. Qxg7 {[%emt 0:00:19]} h5 {[%emt 0:02:34]} 16. Qxf7 {[%emt 0:00:15]} Rdf8 {[%emt 0:00:23]} 17. Qg7 {[%emt 0:00:11]} Qe8 {[%emt 0:00:46]} 18. Nf3 {[%emt 0:03:22]} Rfg8 {[%emt 0:00:12]} 19. Qxh8 {[%emt 0:00:07]} Rxh8 {[%emt 0:00:01]} 20. Bf4 {[%emt 0:00:05]} Rg8 {[%emt 0:00:10]} 21. g3 {[%emt 0:00:17]} Qa4 {[%emt 0:00:48]} 22. Kb1 {[%emt 0:00:06]} c5 {[%emt 0:00:09]} 23. h4 {[%emt 0:00:04]} c4 {[%emt 0:00:33]} 24. Nd4 {[%emt 0:00:09]} Kd7 {[%emt 0:00:25]} 25. dxc4 {[%emt 0:01:36]} dxc4 {[%emt 0:01:07]} 26. Rhe1 {[%emt 0:00:10]} Be4+ {[%emt 0:00:35]} 27. Ka1 {[%emt 0:00:05]} Bd3 {[%emt 0:00:06]} 28. Ne2 {[%emt 0:02:01]} Bb4 {[%emt 0:00:14]} 29. Nc3 {[%emt 0:00:03]} Bxc3 {[%emt 0:00:15]} 30. bxc3 {[%emt 0:00:03]} Qa3 {[%emt 0:00:28]} 31. Rc1 {[%emt 0:00:05]} Rc8 {[%emt 0:00:17]} 32. Bh6 {[%emt 0:00:56]} Ke8 {[%emt 0:00:02]} 0-1